fUST/lending_fUST_20241126
["ID","MTS","AMOUNT","RATE_DAILY","PERIOD"]
[343310550,1732564243697,-500.0,0.00024973,2]
[343310553,1732564243707,-500.0,0.00024973,2]
[343310555,1732564243717,-501.6240947,0.00024973,2]
[343310557,1732564243726,-607.55581144,0.00024973,2]
[343310559,1732564243735,-321.1185576,0.00024973,2]
[343310561,1732564243744,-509.79179622,0.00024973,2]
[343310562,1732564243754,-1019.84017744,0.00024999,2]
[343310564,1732564243763,-500.0,0.00024999,2]
[343310566,1732564243772,-501.21053573,0.00024999,2]
[343310567,1732564243783,-500.0,0.00024999,2]
[343310568,1732564243792,-500.0,0.00024999,2]
[343310569,1732564243802,-500.0,0.00024999,2]
[343310570,1732564243811,-500.0,0.00024999,2]
[343310572,1732564243820,-500.0,0.00024999,2]
[343310574,1732564243829,-500.0,0.00024999,2]
[343310576,1732564243839,-565.44590743,0.00024999,2]
[343310578,1732564243848,-500.0,0.00024999,2]
[343310580,1732564243858,-500.0,0.00024999,2]
[343310582,1732564243867,-482.44296723,0.00024999,2]
[343310584,1732564243876,-500.0,0.00024999,2]
[343310586,1732564243886,-889740.7961237,0.00025,5]
[343310588,1732564243895,-178.22205,0.00025,7]
[343310590,1732564243904,-302.78807257,0.00025,2]
[343310592,1732564243913,-500.0,0.00025099,2]
[343310594,1732564243923,-500.0,0.00025168,2]
[343310596,1732564243932,-302.78807257,0.0002525,2]
[343310598,1732564243942,-500.0,0.00025273,2]
[343310600,1732564243951,-876.69576946,0.0002535,2]
[343310602,1732564243960,-500.0,0.00025373,2]
[343310604,1732564243969,-500.0,0.00025442,2]
[343310606,1732564243979,-151.77240787,0.000255,2]
[343310608,1732564243988,-152.76,0.00025547,2]
[343310610,1732564243997,-500.0,0.00025647,2]
[343310613,1732564244007,-500.0,0.00025716,2]
[343310615,1732564244016,-420.0,0.00025733,2]
[343310617,1732564244027,-201.33552961,0.00025921,2]
[343310618,1732564244037,-500.0,0.0002599,2]
[343310619,1732564244046,-420.0,0.00026095,2]
[343310620,1732564244055,-500.0,0.000261,2]
[343310621,1732564244064,-500.0,0.00026264,2]
[343310622,1732564244073,-310.9271646,0.00026476,2]
[343310623,1732564244083,-500.0,0.00026538,2]
[343310624,1732564244092,-10000.0,0.000266,10]
[343310625,1732564244101,-578.43230294,0.00026648,2]
[343310626,1732564244110,-500.0,0.00026812,2]
[343310627,1732564244120,-500.0,0.00027086,2]
[343310628,1732564244129,-500.0,0.0002736,2]
[343310629,1732564244138,-500.0,0.00027397,2]
[343310630,1732564244147,-267.54784396,0.00027634,2]
[343310631,1732564244156,-150.0,0.00027771,2]
[343310632,1732564244165,-1103.0,0.00027771,2]
[343310633,1732564244175,-150.0,0.00027771,2]
[343310634,1732564244184,-178.999,0.00027771,2]
[343310635,1732564244193,-310.04635823,0.00027799,2]
[343310636,1732564244292,-10000.0,0.000279,10]
[343310637,1732564244302,-587.0,0.00027913,2]
[343310638,1732564244311,-1083.30740859,0.00028,2]
[343310639,1732564244323,-3000.0,0.00028,2]
[343310640,1732564244333,-3000.0,0.0002801,2]
[343310641,1732564244343,-3000.0,0.0002802,2]
[343310642,1732564244353,-3000.0,0.0002803,2]
[343310643,1732564244362,-3000.0,0.0002804,2]
[343310644,1732564244372,-3000.0,0.0002805,2]
[343310645,1732564244382,-3000.0,0.0002806,2]
[343310646,1732564244392,-3000.0,0.0002807,2]
[343310647,1732564244402,-3000.0,0.0002808,2]
[343310648,1732564244415,-3000.0,0.0002809,2]
[343310649,1732564244425,-3000.0,0.000281,2]
[343310650,1732564244435,-3000.0,0.0002811,2]
[343310651,1732564244445,-3000.0,0.0002812,2]
[343310652,1732564244455,-3000.0,0.0002813,2]
[343310653,1732564244464,-3000.0,0.0002814,2]
[343310654,1732564244474,-3000.0,0.0002815,2]
[343310655,1732564244483,-3000.0,0.0002816,2]
[343310656,1732564244493,-3000.0,0.0002817,2]
[343310657,1732564244503,-3000.0,0.0002818,2]
[343310658,1732564244513,-3000.0,0.0002819,2]
[343310659,1732564244522,-3000.0,0.000282,2]
[343310660,1732564244533,-1000.0,0.00028209,2]
[343310661,1732564244543,-3000.0,0.0002821,2]
[343310662,1732564244552,-3000.0,0.0002822,2]
[343310663,1732564244562,-3000.0,0.0002823,2]
[343310664,1732564244571,-3000.0,0.0002824,2]
[343310665,1732564244581,-3000.0,0.0002825,2]
[343310666,1732564244590,-3545.546927,0.0002826,2]
[343310667,1732564244599,-1000.0,0.00028428,2]
[343310668,1732564244608,-1000.0,0.0002859,2]
[343310669,1732564244618,-617.64431303,0.00028616,7]
[343310670,1732564244627,-150.0,0.00028667,2]
[343310671,1732564244637,-587.0,0.00028705,2]
[343310672,1732564244647,-1000.0,0.00028972,2]
[343310673,1732564244657,-1000.0,0.00029021,2]
[343310674,1732564244666,-1000.0,0.00029023,2]
[343310675,1732564244676,-1133.17,0.000293,2]
[343310676,1732564244685,-1000.0,0.00029338,2]
[343310677,1732564244695,-6986.17614855,0.000294,7]
[343310678,1732564244705,-151.0,0.00029532,7]
[343310679,1732564244714,-1000.0,0.00029556,2]
[343310680,1732564244723,-277517.84857188,0.00029564,10]
[343310681,1732564244736,-673968.64455356,0.00029564,10]
[343310682,1732564244747,-95140.98996189,0.00029564,10]
[343310719,1732564246548,-212.7413024,0.00029562,30]
[343310720,1732564246558,-1944.01993923,0.00029564,10]
[343310722,1732564246570,-38063.8,0.00029564,10]
[343310731,1732564515502,159.640276,0.00013973,2]
[343310735,1732564989997,164.731988,0.00022,2]
[343310739,1732565229318,159.640276,0.00013973,2]
[343310782,1732565435641,-294.79291097,0.00022869,2]
[343310783,1732565435652,-164.731988,0.00023569,2]
[343310784,1732565435662,-588.751388,0.00023868,2]
[343310785,1732565435671,-160.021,0.00024799,8]
[343310786,1732565435681,-196.30204369,0.00024799,8]
[343310787,1732565435690,-500.0,0.00024799,2]
[343310788,1732565435706,-500.0,0.00024799,2]
[343310789,1732565435716,-300.0,0.00024799,2]
[343310790,1732565435725,-300.0,0.00024799,2]
[343310791,1732565435734,-11201.15066934,0.000248,2]
[343310797,1732565438773,-24708.14720619,0.000248,2]
[343310818,1732565440460,-9467.29774999,0.000248,2]
[343310824,1732565440512,-769.85050136,0.000248,2]
[343310858,1732565443643,-175853.55387312,0.000248,2]
[343310860,1732565443653,-1605.177609,0.00024973,2]
[343310861,1732565443663,-458.33,0.00025073,2]
[343310862,1732565443672,-1605.17760895,0.0002561,2]
[343310863,1732565443681,-1605.17760895,0.00026247,2]
[343310864,1732565443690,-420.0,0.00026871,2]
[343310865,1732565443701,-1605.17760895,0.00026884,2]
[343310866,1732565443710,-420.0,0.00027279,2]
[343310867,1732565443719,-500.0,0.00027397,2]
[343310868,1732565443728,-1605.17760895,0.0002752,2]
[343310869,1732565443737,-150.0,0.00028,2]
[343310870,1732565443747,-1605.17760895,0.00028157,2]
[343310871,1732565443756,-152.82,0.000282,31]
[343310872,1732565443766,-152.82,0.000282,31]
[343310873,1732565443775,-152.82,0.000282,31]
[343310874,1732565443784,-152.82,0.000282,31]
[343310875,1732565443794,-152.82,0.000282,31]
[343310876,1732565443803,-152.82,0.000282,31]
[343310877,1732565443813,-152.82,0.000282,31]
[343310878,1732565443822,-152.82,0.000282,31]
[343310879,1732565443832,-250.0,0.00028226,2]
[343310880,1732565443843,-150.0,0.00028226,2]
[343310881,1732565443853,-454.607,0.00028226,2]
[343310882,1732565443863,-152.82,0.000286,31]
[343310883,1732565443873,-152.82,0.000286,31]
[343310884,1732565443883,-152.82,0.000286,31]
[343310885,1732565443893,-152.82,0.000286,31]
[343310886,1732565443902,-152.82,0.000286,31]
[343310887,1732565443912,-152.82,0.000286,31]
[343310888,1732565443921,-152.82,0.000286,31]
[343310889,1732565443930,-152.82,0.000286,31]
[343310890,1732565443939,-152.82,0.000286,31]
[343310891,1732565443951,-152.82,0.000286,31]
[343310892,1732565443960,-152.82,0.000286,31]
[343310893,1732565443971,-152.82,0.000286,31]
[343310894,1732565443981,-152.82,0.000286,31]
[343310895,1732565443990,-152.82,0.000286,31]
[343310896,1732565444000,-152.82,0.000286,31]
[343310897,1732565444009,-152.82,0.000286,31]
[343310898,1732565444018,-212.7413024,0.0002874,30]
[343310899,1732565444028,-200.7968787,0.0002874,30]
[343310900,1732565444038,-212.7413024,0.0002874,30]
[343310901,1732565444047,-212.7413024,0.0002874,30]
[343310902,1732565444057,-153.0,0.0002874,30]
[343310903,1732565444066,-212.7413024,0.0002874,30]
[343310904,1732565444076,-153.0,0.0002874,30]
[343310905,1732565444085,-153.0,0.0002874,30]
[343310906,1732565444095,-153.0,0.0002874,30]
[343310907,1732565444104,-425.4826048,0.00028778,30]
[343310908,1732565444114,-1605.17760895,0.00028794,2]
[343310909,1732565444123,-152.82,0.000289,31]
[343310910,1732565444132,-152.82,0.000289,31]
[343310911,1732565444142,-152.82,0.000289,31]
[343310912,1732565444151,-152.82,0.000289,31]
[343310913,1732565444160,-152.82,0.000289,31]
[343310914,1732565444170,-152.82,0.000289,31]
[343310915,1732565444180,-152.82,0.000289,31]
[343310916,1732565444190,-152.82,0.000289,31]
[343310917,1732565444202,-152.82,0.000289,31]
[343310918,1732565444212,-152.82,0.000289,31]
[343310919,1732565444222,-152.82,0.000289,31]
[343310920,1732565444232,-152.82,0.000289,31]
[343310921,1732565444241,-152.82,0.000289,31]
[343310922,1732565444251,-152.82,0.000289,31]
[343310923,1732565444260,-152.82,0.000289,31]
[343310924,1732565444269,-152.82,0.000289,31]
[343310925,1732565444279,-10562.9705976,0.00029104,15]
[343310926,1732565444288,-339.03080535,0.00029115,2]
[343310927,1732565444297,-169.56341374,0.00029115,2]
[343310928,1732565444306,-587.0,0.00029116,2]
[343310929,1732565444315,-1084.41,0.000293,2]
[343310930,1732565444325,-152.82,0.000293,31]
[343310931,1732565444334,-152.82,0.000293,31]
[343310932,1732565444343,-152.82,0.000293,31]
[343310933,1732565444353,-152.82,0.000293,31]
[343310934,1732565444362,-152.82,0.000293,31]
[343310935,1732565444371,-152.82,0.000293,31]
[343310936,1732565444381,-152.82,0.000293,31]
[343310937,1732565444391,-152.82,0.000293,31]
[343310938,1732565444400,-152.82,0.000293,31]
[343310939,1732565444409,-152.82,0.000293,31]
[343310940,1732565444418,-152.82,0.000293,31]
[343310941,1732565444428,-152.82,0.000293,31]
[343310942,1732565444437,-152.82,0.000293,31]
[343310943,1732565444447,-152.82,0.000293,31]
[343310944,1732565444458,-152.82,0.000293,31]
[343310945,1732565444467,-152.82,0.000293,31]
[343310946,1732565444476,-6287.5585337,0.000294,7]
[343310947,1732565444486,-1605.17760895,0.00029431,2]
[343310948,1732565444495,-330.0,0.00029464,2]
[343310949,1732565444505,-150.0,0.000295,2]
[343310950,1732565444514,-729306.47633857,0.00029531,10]
[343311289,1732565979876,160.561271,0.00013973,2]
[343311315,1732566398336,-274.076675,0.00030137,120]
[343311316,1732566398388,-181.9322377,0.000333,120]
[343311317,1732566398438,-118.0677623,0.000333,120]
[343311318,1732566398461,-171.31324969,0.0003348,120]
[343311319,1732566398526,-20.72075031,0.0003348,120]
[343311320,1732566398549,-151.0,0.00033753,120]
[343311321,1732566398572,-750.0,0.00034,120]
[343311322,1732566398593,-264.96938,0.00034,120]
[343311323,1732566398614,-151.0,0.00034274,120]
[343311324,1732566398636,-226.41059,0.00035,120]
[343311325,1732566398657,-226.41059,0.00035,120]
[343311326,1732566398687,-226.41059,0.00035,120]
[343311327,1732566398708,-20.77347969,0.00035,120]
[343311328,1732566398804,-205.63711031,0.00035,120]
[343311329,1732566398826,-226.41059,0.00035,120]
[343311330,1732566398851,-226.41059,0.00035,120]
[343311331,1732566398873,-226.41059,0.00035,120]
[343311332,1732566398897,-226.41059,0.00035,120]
[343311333,1732566398922,-226.41066,0.00035,120]
[343311334,1732566398945,-300.0,0.00035,120]
[343311335,1732566398966,-274.076675,0.0003516,120]
[343311336,1732566398988,-600.0,0.00036,120]
[343311337,1732566399010,-289.38101199,0.000365,120]
[343311338,1732566399034,-181.9322377,0.00037,120]
[343311339,1732566399055,-76168.6319926,0.00037072,120]
[343311341,1732566431795,264.96938,0.00034,120]
[343311346,1732566500442,9889.85413686,0.0002,2]
[343311347,1732566510375,288.17590252,0.000176,2]
[343311348,1732566512209,6795.51922676,0.0002,2]
[343311349,1732566520804,58253.01236604,0.00020377,2]
[343311350,1732566521034,4349.40978335,0.0002,2]
[343311351,1732566522473,351.57457878,0.0002,2]
[343311352,1732566525873,81111.69956467,0.000109,2]
[343311379,1732566632889,-4789.12689257,0.00022788,2]
[343311380,1732566632898,-162.1006256,0.00023495,2]
[343311381,1732566632909,-492.331436,0.0002358,2]
[343311382,1732566632920,-300.0,0.00023723,2]
[343311383,1732566632929,-300.0,0.00023723,2]
[343311384,1732566632938,-10232.9891301,0.00023724,2]
[343311385,1732566632949,-227.031299,0.00023944,2]
[343311386,1732566632958,-227.031299,0.00024629,2]
[343311387,1732566632967,-394.39,0.0002469,10]
[343311388,1732566632976,-527.4,0.00024698,2]
[343311389,1732566632986,-686.92,0.00024698,2]
[343311390,1732566632995,-500.0,0.00024698,2]
[343311391,1732566633005,-500.0,0.00024698,2]
[343311392,1732566633014,-500.0,0.00024698,2]
[343311393,1732566633023,-225.07977592,0.00024698,2]
[343311394,1732566633040,-274.92022408,0.00024698,2]
[343311395,1732566633050,-160.022,0.00024699,7]
[343311396,1732566633060,-500.0,0.00024699,2]
[343311397,1732566633070,-500.0,0.00024699,2]
[343311398,1732566633078,-500.0,0.00024699,2]
[343311399,1732566633088,-171.8595185,0.00024699,2]
[343311400,1732566633097,-500.0,0.00024699,2]
[343311401,1732566633107,-500.0,0.00024699,2]
[343311402,1732566633117,-500.0,0.00024699,2]
[343311403,1732566633127,-427.85999546,0.00024699,2]
[343311404,1732566633136,-500.0,0.00024699,2]
[343311405,1732566633146,-500.0,0.00024699,2]
[343311406,1732566633155,-500.0,0.00024699,2]
[343311407,1732566633168,-500.0,0.00024699,2]
[343311408,1732566633178,-128.98123046,0.00024699,2]
[343311409,1732566633189,-371.01876954,0.00024699,2]
[343311410,1732566633199,-500.0,0.00024699,2]
[343311411,1732566633208,-500.0,0.00024699,2]
[343311412,1732566633219,-500.0,0.00024699,2]
[343311413,1732566633228,-500.0,0.00024699,2]
[343311414,1732566633238,-544.11937671,0.00024699,2]
[343311415,1732566633247,-500.0,0.00024699,2]
[343311416,1732566633257,-500.0,0.00024699,2]
[343311417,1732566633266,-295.60508638,0.00024699,2]
[343311418,1732566633276,-500.0,0.00024699,2]
[343311419,1732566633285,-4789.75676737,0.000247,2]
[343311420,1732566633297,-1806.87953638,0.000247,2]
[343311421,1732566633308,-633.12684086,0.000247,2]
[343311435,1732566640616,-500.0,0.00024673,2]
[343311436,1732566640627,-5589.63983065,0.000247,2]
[343311437,1732566640673,-1072.43394788,0.000247,2]
[343311438,1732566640686,-307.22,0.000247,2]
[343311467,1732566643818,-17010.57762894,0.000247,2]
[343311468,1732566643867,-3398.76670594,0.000247,2]
[343311469,1732566643980,-10446.42542968,0.000247,2]
[343311547,1732566760344,182.717783,0.00030137,120]
[343311548,1732566809292,166.817766,0.00013973,2]
[343311597,1732567476931,9.316217,0.00030137,120]
[343311600,1732567528274,166.817766,0.00013973,2]
[343311601,1732567587764,1318.64095654,0.00022,2]
[343311602,1732567619147,-207.35191527,0.00022688,2]
[343311603,1732567619166,-104.46032581,0.00022776,2]
[343311632,1732567831915,-504.634785,0.00022702,2]
[343311633,1732567831925,-1643.3877158,0.0002276,2]
[343311634,1732567831935,-2895.53967419,0.00022776,2]
[343311635,1732567831944,-164.845747,0.00022869,2]
[343311636,1732567831954,-202.0,0.00023,2]
[343311637,1732567831963,-3193.624258,0.00023308,2]
[343311638,1732567831973,-300.0,0.00023328,2]
[343311639,1732567831983,-7728.0435744,0.00023329,2]
[343311640,1732567831992,-263.61,0.00023376,2]
[343311641,1732567832002,-152.0,0.00023975,2]
[343311642,1732567832011,-500.0,0.00023989,2]
[343311643,1732567832020,-500.0,0.0002399,2]
[343311644,1732567832030,-595.71306628,0.0002399,2]
[343311645,1732567832039,-718.14,0.0002399,2]
[343311646,1732567832049,-500.0,0.0002399,2]
[343311647,1732567832058,-500.0,0.0002399,2]
[343311648,1732567832067,-500.0,0.0002399,2]
[343311649,1732567832077,-500.0,0.0002399,2]
[343311650,1732567832086,-395.98861059,0.00023991,2]
[343311651,1732567832095,-500.0,0.00023991,2]
[343311652,1732567832105,-500.0,0.00023991,2]
[343311653,1732567832115,-564.34754177,0.00023991,2]
[343311654,1732567832127,-500.0,0.00023991,2]
[343311655,1732567832139,-500.0,0.00023991,2]
[343311656,1732567832149,-526.89,0.00023991,2]
[343311657,1732567832158,-500.0,0.00023991,2]
[343311658,1732567832168,-500.0,0.00023991,2]
[343311659,1732567832177,-206.69,0.00023991,2]
[343311660,1732567832187,-500.0,0.00023991,2]
[343311661,1732567832197,-500.0,0.00023991,2]
[343311662,1732567832206,-3279.09,0.00023991,2]
[343311663,1732567832216,-500.0,0.00023991,2]
[343311664,1732567832230,-500.0,0.00023991,2]
[343311665,1732567832239,-500.0,0.00023991,2]
[343311666,1732567832249,-500.0,0.00023991,2]
[343311667,1732567832258,-500.0,0.00023991,2]
[343311668,1732567832270,-500.0,0.00023991,2]
[343311669,1732567832279,-500.0,0.00023991,2]
[343311670,1732567832289,-500.0,0.00023991,2]
[343311671,1732567832300,-500.0,0.00023991,2]
[343311672,1732567832310,-500.0,0.00023991,2]
[343311673,1732567832319,-500.0,0.00023991,2]
[343311674,1732567832329,-3193.624258,0.00023992,2]
[343311675,1732567832338,-614.04671633,0.00024131,2]
[343311676,1732567832348,-500.0,0.00024264,2]
[343311677,1732567832357,-718.14,0.00024264,2]
[343311678,1732567832367,-500.0,0.00024264,2]
[343311679,1732567832380,-500.0,0.00024264,2]
[343311680,1732567832390,-500.0,0.00024264,2]
[343311681,1732567832400,-281.1466831,0.00024264,2]
[343311682,1732567832410,-500.0,0.00024265,2]
[343311683,1732567832420,-500.0,0.00024265,2]
[343311684,1732567832429,-500.0,0.00024265,2]
[343311685,1732567832438,-3279.09,0.00024265,2]
[343311686,1732567832448,-500.0,0.00024265,2]
[343311687,1732567832457,-500.0,0.00024265,2]
[343311688,1732567832466,-500.0,0.00024265,2]
[343311689,1732567832476,-500.0,0.00024265,2]
[343311690,1732567832485,-296.31580055,0.0002428,2]
[343311691,1732567832495,-7427.56860928,0.00024362,2]
[343311692,1732567832504,-7427.56860928,0.00024393,2]
[343311693,1732567832514,-296.94955733,0.000245,2]
[343311694,1732567832523,-195.05651619,0.00024526,2]
[343311695,1732567832533,-500.0,0.00024538,2]
[343311696,1732567832542,-718.14,0.00024538,2]
[343311697,1732567832551,-500.0,0.00024538,2]
[343311698,1732567832561,-500.0,0.00024538,2]
[343311699,1732567832571,-500.0,0.00024538,2]
[343311700,1732567832580,-500.0,0.00024539,2]
[343311701,1732567832589,-264.94,0.00024539,2]
[343311702,1732567832599,-3279.09,0.00024539,2]
[343311703,1732567832608,-500.0,0.00024539,2]
[343311704,1732567832617,-500.0,0.00024539,2]
[343311705,1732567832630,-500.0,0.00024539,2]
[343311706,1732567832639,-500.0,0.00024539,2]
[343311707,1732567832648,-296.9495573,0.00024553,2]
[343311708,1732567832658,-200.05901933,0.00024573,2]
[343311709,1732567832667,-157.14948066,0.00024573,2]
[343311710,1732567832676,-500.0,0.00024573,2]
[343311711,1732567832685,-500.0,0.00024573,2]
[343311712,1732567832694,-278.59911326,0.00024573,2]
[343311713,1732567832703,-500.0,0.00024573,2]
[343311714,1732567832712,-681.11,0.00024586,3]
[343311715,1732567832721,-500.0,0.00024597,2]
[343311716,1732567832730,-500.0,0.00024597,2]
[343311717,1732567832739,-500.0,0.00024597,2]
[343311718,1732567832748,-500.0,0.00024597,2]
[343311719,1732567832758,-5000.0,0.00024597,2]
[343311720,1732567832768,-5000.0,0.00024597,2]
[343311721,1732567832777,-500.0,0.00024597,2]
[343311722,1732567832786,-500.0,0.00024597,2]
[343311723,1732567832796,-500.0,0.00024597,2]
[343311724,1732567832805,-500.0,0.00024597,2]
[343311725,1732567832814,-500.0,0.00024597,2]
[343311726,1732567832823,-500.0,0.00024597,2]
[343311727,1732567832832,-500.0,0.00024597,2]
[343311728,1732567832840,-500.0,0.00024597,2]
[343311729,1732567832849,-500.0,0.00024598,2]
[343311730,1732567832858,-500.0,0.00024598,2]
[343311731,1732567832867,-500.0,0.00024598,2]
[343311732,1732567832878,-500.0,0.00024598,2]
[343311733,1732567832888,-533.60528926,0.00024598,2]
[343311734,1732567832896,-500.0,0.00024598,2]
[343311735,1732567832905,-500.0,0.00024598,2]
[343311736,1732567832914,-500.0,0.00024598,2]
[343311737,1732567832924,-500.0,0.00024598,2]
[343311738,1732567832933,-501.1035189,0.00024598,2]
[343311739,1732567832942,-552.4115607,0.00024598,2]
[343311740,1732567832951,-500.0,0.00024598,2]
[343311741,1732567832960,-500.0,0.00024598,2]
[343311742,1732567832969,-506.70999776,0.00024598,2]
[343311743,1732567832978,-500.0,0.00024598,2]
[343311744,1732567832987,-500.0,0.00024598,2]
[343311745,1732567832996,-500.0,0.00024598,2]
[343311746,1732567833005,-500.0,0.00024598,2]
[343311747,1732567833015,-500.0,0.00024598,2]
[343311748,1732567833024,-500.0,0.00024598,2]
[343311749,1732567833033,-500.0,0.00024598,2]
[343311750,1732567833043,-500.0,0.00024598,2]
[343311751,1732567833053,-500.0,0.00024598,2]
[343311752,1732567833063,-500.0,0.00024598,2]
[343311753,1732567833073,-500.0,0.00024598,2]
[343311754,1732567833082,-163.87779465,0.00024598,2]
[343311755,1732567833092,-500.0,0.00024598,2]
[343311756,1732567833102,-500.0,0.00024598,2]
[343311757,1732567833111,-519.51693828,0.00024598,2]
[343311758,1732567833121,-500.0,0.00024598,2]
[343311759,1732567833136,-500.0,0.00024598,2]
[343311760,1732567833146,-500.0,0.00024598,2]
[343311761,1732567833156,-500.0,0.00024598,2]
[343311762,1732567833165,-500.0,0.00024598,2]
[343311763,1732567833174,-500.0,0.00024598,2]
[343311764,1732567833184,-500.0,0.00024598,2]
[343311765,1732567833194,-500.0,0.00024598,2]
[343311766,1732567833204,-500.0,0.00024598,2]
[343311767,1732567833214,-500.0,0.00024598,2]
[343311768,1732567833228,-500.0,0.00024598,2]
[343311769,1732567833238,-515.52900489,0.00024598,2]
[343311770,1732567833249,-500.0,0.00024598,2]
[343311771,1732567833258,-500.0,0.00024598,2]
[343311772,1732567833269,-500.0,0.00024598,2]
[343311773,1732567833279,-500.0,0.00024598,2]
[343311774,1732567833289,-500.0,0.00024598,2]
[343311775,1732567833301,-500.0,0.00024598,2]
[343311776,1732567833311,-500.0,0.00024598,2]
[343311777,1732567833320,-235.76880186,0.00024598,2]
[343311778,1732567833330,-500.0,0.00024598,2]
[343311779,1732567833340,-280.0621367,0.00024598,2]
[343311780,1732567833350,-505.29817363,0.00024598,2]
[343311781,1732567833360,-500.0,0.00024598,2]
[343311782,1732567833370,-500.0,0.00024598,2]
[343311783,1732567833385,-500.0,0.00024598,2]
[343311784,1732567833395,-500.0,0.00024598,2]
[343311785,1732567833405,-500.0,0.00024598,2]
[343311786,1732567833504,-500.0,0.00024598,2]
[343311787,1732567833514,-500.0,0.00024598,2]
[343311788,1732567833524,-500.0,0.00024598,2]
[343311789,1732567833534,-500.80737839,0.00024598,2]
[343311790,1732567833544,-5000.0,0.00024598,2]
[343311791,1732567833554,-5000.0,0.00024598,2]
[343311792,1732567833564,-500.0,0.00024598,2]
[343311793,1732567833574,-5000.0,0.00024598,2]
[343311794,1732567833583,-500.0,0.00024598,2]
[343311795,1732567833593,-500.0,0.00024598,2]
[343311796,1732567833603,-502.61116062,0.00024598,2]
[343311797,1732567833613,-500.0,0.00024598,2]
[343311798,1732567833623,-500.0,0.00024598,2]
[343311799,1732567833634,-500.0,0.00024598,2]
[343311800,1732567833644,-500.0,0.00024598,2]
[343311801,1732567833653,-500.0,0.00024598,2]
[343311802,1732567833663,-582.5628001,0.00024598,2]
[343311803,1732567833673,-500.0,0.00024598,2]
[343311804,1732567833682,-500.0,0.00024598,2]
[343311805,1732567833692,-500.0,0.00024598,2]
[343311806,1732567833702,-500.0,0.00024598,2]
[343311807,1732567833711,-500.0,0.00024598,2]
[343311808,1732567833720,-500.0,0.00024598,2]
[343311809,1732567833729,-450.2966301,0.00024598,2]
[343311810,1732567833739,-500.0,0.00024598,2]
[343311811,1732567833748,-500.0,0.00024598,2]
[343311812,1732567833757,-516.87166861,0.00024598,2]
[343311813,1732567833766,-500.0,0.00024598,2]
[343311814,1732567833776,-500.0,0.00024598,2]
[343311815,1732567833785,-535.9,0.00024598,2]
[343311816,1732567833795,-500.0,0.00024598,2]
[343311817,1732567833804,-500.0,0.00024598,2]
[343311818,1732567833814,-500.0,0.00024598,2]
[343311819,1732567833823,-500.0,0.00024598,2]
[343311820,1732567833833,-500.0,0.00024598,2]
[343311821,1732567833843,-172.74230675,0.00024598,2]
[343311822,1732567833852,-500.0,0.00024598,2]
[343311823,1732567833862,-520.33589777,0.00024598,2]
[343311824,1732567833872,-500.0,0.00024598,2]
[343311825,1732567833885,-500.0,0.00024598,2]
[343311826,1732567833895,-500.0,0.00024598,2]
[343311827,1732567833904,-500.0,0.00024598,2]
[343311828,1732567833914,-524.45063665,0.00024598,2]